[Event "Late-Titled-Tuesday-Blitz-April-23-2024"]
[Site "Chess.com"]
[Date "2024.04.23"]
[Round "1"]
[White "Statham_01"]
[Black "PNEPaul"]
[Result "1-0"]
[WhiteElo "2554"]
[BlackElo "1915"]
[TimeControl "180+1"]
[EndTime "14:07:26 PDT"]
[Termination "Statham_01 won on time"]

1. e4 {[%clk 0:02:59.8]} 1... e5 {[%clk 0:03:00]} 2. Nf3 {[%clk 0:02:59.7]} 2...
Nc6 {[%clk 0:02:58.1]} 3. c3 {[%clk 0:03:00.1]} 3... Be7 {[%clk 0:02:57.1]} 4.
d4 {[%clk 0:02:59.9]} 4... exd4 {[%clk 0:02:57.2]} 5. cxd4 {[%clk 0:03:00.1]}
5... d6 {[%clk 0:02:57.5]} 6. Bb5 {[%clk 0:02:58.7]} 6... Bd7 {[%clk 0:02:56.3]}
7. O-O {[%clk 0:02:57.3]} 7... Nf6 {[%clk 0:02:56.2]} 8. e5 {[%clk 0:02:57.2]}
8... Ne4 {[%clk 0:02:39.6]} 9. Re1 {[%clk 0:02:51]} 9... d5 {[%clk 0:02:39.5]}
10. Bd3 {[%clk 0:02:44.1]} 10... Bf5 {[%clk 0:02:25.2]} 11. Nc3 {[%clk
0:02:43.5]} 11... Nxc3 {[%clk 0:02:19.9]} 12. bxc3 {[%clk 0:02:44.4]} 12... Bxd3
{[%clk 0:02:18.8]} 13. Qxd3 {[%clk 0:02:45.3]} 13... O-O {[%clk 0:02:17.4]} 14.
Rb1 {[%clk 0:02:43.3]} 14... b6 {[%clk 0:02:12.2]} 15. Bf4 {[%clk 0:02:41]}
15... Na5 {[%clk 0:02:10.9]} 16. Bg3 {[%clk 0:02:35.4]} 16... Nc4 {[%clk
0:02:10.5]} 17. e6 {[%clk 0:02:29.7]} 17... fxe6 {[%clk 0:02:02.1]} 18. Rxe6
{[%clk 0:02:30.6]} 18... Bf6 {[%clk 0:01:52.5]} 19. Rbe1 {[%clk 0:02:28.5]}
19... Qd7 {[%clk 0:01:49.5]} 20. h4 {[%clk 0:02:14.5]} 20... Rae8 {[%clk
0:01:47.4]} 21. Qf5 {[%clk 0:02:13.7]} 21... Rxe6 {[%clk 0:01:37]} 22. Qxe6+
{[%clk 0:02:10.1]} 22... Qxe6 {[%clk 0:01:24]} 23. Rxe6 {[%clk 0:02:11]} 23...
c5 {[%clk 0:01:20.9]} 24. Rc6 {[%clk 0:02:03.8]} 24... cxd4 {[%clk 0:01:19]} 25.
cxd4 {[%clk 0:02:04.3]} 25... Rf7 {[%clk 0:00:48.9]} 26. h5 {[%clk 0:01:56]}
26... h6 {[%clk 0:00:46.2]} 27. Bd6 {[%clk 0:01:38.8]} 27... Rd7 {[%clk
0:00:36.4]} 28. Be5 {[%clk 0:01:13.7]} 28... Kf7 {[%clk 0:00:25.3]} 29. Bxf6
{[%clk 0:01:09.2]} 29... gxf6 {[%clk 0:00:24.1]} 30. Nh4 {[%clk 0:01:09.8]}
30... Nd6 {[%clk 0:00:19.6]} 31. Rc3 {[%clk 0:01:04.6]} 31... Ne4 {[%clk
0:00:17.3]} 32. Re3 {[%clk 0:00:58.3]} 32... Nd6 {[%clk 0:00:12.8]} 33. g4
{[%clk 0:00:52.6]} 33... Re7 {[%clk 0:00:09.7]} 34. Rxe7+ {[%clk 0:00:45.2]}
34... Kxe7 {[%clk 0:00:09.2]} 35. Ng6+ {[%clk 0:00:46.1]} 35... Kf7 {[%clk
0:00:08.3]} 36. Nf4 {[%clk 0:00:46.6]} 36... f5 {[%clk 0:00:04.1]} 37. f3 {[%clk
0:00:44.2]} 37... fxg4 {[%clk 0:00:03.1]} 38. fxg4 {[%clk 0:00:45.1]} 38... Nb5
{[%clk 0:00:02.3]} 39. Ne2 {[%clk 0:00:41]} 39... Kf6 {[%clk 0:00:01.8]} 40. Kg2
{[%clk 0:00:41.6]} 40... Kg5 {[%clk 0:00:01.8]} 41. Kg3 {[%clk 0:00:42.2]} 41...
Nd6 {[%clk 0:00:01.9]} 42. Kf3 {[%clk 0:00:38.7]} 42... Ne4 {[%clk 0:00:01.9]}
43. a4 {[%clk 0:00:33.5]} 43... Nf6 {[%clk 0:00:01.9]} 44. Nf4 {[%clk
0:00:29.4]} 44... Nxg4 {[%clk 0:00:01.2]} 45. Nxd5 {[%clk 0:00:27.2]} 1-0

[Event "Late-Titled-Tuesday-Blitz-April-23-2024"]
[Site "Chess.com"]
[Date "2024.04.23"]
[Round "1"]
[White "lupta_robin"]
[Black "zano2023"]
[Result "0-1"]
[WhiteElo "2566"]
[BlackElo "2172"]
[TimeControl "180+1"]
[EndTime "14:07:27 PDT"]
[Termination "zano2023 won by resignation"]

1. b3 {[%clk 0:03:00.3]} 1... d6 {[%clk 0:02:57]} 2. Bb2 {[%clk 0:02:56.4]} 2...
Nd7 {[%clk 0:02:57.4]} 3. Nf3 {[%clk 0:02:54.8]} 3... e5 {[%clk 0:02:56.9]} 4.
d4 {[%clk 0:02:53.5]} 4... e4 {[%clk 0:02:55.1]} 5. Nfd2 {[%clk 0:02:53.7]} 5...
d5 {[%clk 0:02:54.3]} 6. e3 {[%clk 0:02:52]} 6... Ngf6 {[%clk 0:02:54.1]} 7. c4
{[%clk 0:02:52.3]} 7... c6 {[%clk 0:02:54.2]} 8. Nc3 {[%clk 0:02:47.8]} 8... a6
{[%clk 0:02:49.6]} 9. Rc1 {[%clk 0:02:40.9]} 9... Bd6 {[%clk 0:02:49.5]} 10. f3
{[%clk 0:02:38.7]} 10... Qe7 {[%clk 0:02:28.6]} 11. fxe4 {[%clk 0:02:28.1]}
11... Nxe4 {[%clk 0:02:27.9]} 12. Ncxe4 {[%clk 0:02:24.6]} 12... dxe4 {[%clk
0:02:24.2]} 13. Qg4 {[%clk 0:01:55.9]} 13... Nf6 {[%clk 0:02:23.7]} 14. Qxg7
{[%clk 0:01:49.5]} 14... Rg8 {[%clk 0:02:23.6]} 15. Qh6 {[%clk 0:01:50.1]} 15...
Rg6 {[%clk 0:02:22.4]} 16. Qh4 {[%clk 0:01:48.6]} 16... Rg4 {[%clk 0:02:12]} 17.
Qf2 {[%clk 0:01:44.3]} 17... Rg5 {[%clk 0:02:00.9]} 18. Be2 {[%clk 0:01:40.2]}
18... Bg4 {[%clk 0:01:47.9]} 19. d5 {[%clk 0:01:23.1]} 19... Nh5 {[%clk
0:01:34]} 20. Bxg4 {[%clk 0:01:19.6]} 20... Rxg4 {[%clk 0:01:32.1]} 21. dxc6
{[%clk 0:01:15]} 21... bxc6 {[%clk 0:01:31.4]} 22. O-O {[%clk 0:00:46.6]} 22...
Qe6 {[%clk 0:01:12.2]} 23. Qf5 {[%clk 0:00:42.1]} 23... Bxh2+ {[%clk 0:00:50.3]}
24. Kxh2 {[%clk 0:00:37.5]} 24... Rh4+ {[%clk 0:00:50.4]} 25. Kg1 {[%clk
0:00:36.3]} 25... Rh1+ {[%clk 0:00:48.6]} 26. Kxh1 {[%clk 0:00:27]} 26... Ng3+
{[%clk 0:00:48.1]} 27. Kg1 {[%clk 0:00:27.3]} 27... Nxf5 {[%clk 0:00:47.9]} 28.
Rf4 {[%clk 0:00:25.6]} 28... O-O-O {[%clk 0:00:40.7]} 29. Rxe4 {[%clk
0:00:24.7]} 29... Qd6 {[%clk 0:00:36.4]} 30. Nf3 {[%clk 0:00:23.4]} 30... Ng3
{[%clk 0:00:34.6]} 31. Be5 {[%clk 0:00:19.4]} 31... Qd3 {[%clk 0:00:29.7]} 32.
Bxg3 {[%clk 0:00:10]} 32... Qxe4 {[%clk 0:00:29]} 33. Bf4 {[%clk 0:00:10.5]}
33... h5 {[%clk 0:00:26.5]} 34. Kf2 {[%clk 0:00:10.6]} 34... f6 {[%clk 0:00:23]}
35. Re1 {[%clk 0:00:09.9]} 35... a5 {[%clk 0:00:21.3]} 36. Re2 {[%clk
0:00:10.2]} 36... Kb7 {[%clk 0:00:21.3]} 37. Ne1 {[%clk 0:00:09.1]} 37... Qb1
{[%clk 0:00:20.2]} 38. Nf3 {[%clk 0:00:08.8]} 38... Rd1 {[%clk 0:00:19]} 39. Nd4
{[%clk 0:00:09]} 39... Rf1+ {[%clk 0:00:18.7]} 40. Kg3 {[%clk 0:00:08.8]} 40...
Qg6+ {[%clk 0:00:18.4]} 41. Kh2 {[%clk 0:00:08.5]} 41... Qg4 {[%clk 0:00:17.5]}
42. Nf3 {[%clk 0:00:08.2]} 42... h4 {[%clk 0:00:17]} 43. Re1 {[%clk 0:00:07.1]}
43... Rf2 {[%clk 0:00:16.1]} 44. Rg1 {[%clk 0:00:06.7]} 44... Qxf3 {[%clk
0:00:14.3]} 0-1

[Event "Late-Titled-Tuesday-Blitz-April-23-2024"]
[Site "Chess.com"]
[Date "2024.04.23"]
[Round "1"]
[White "Njal28"]
[Black "Cambek64"]
[Result "1-0"]
[WhiteElo "3028"]
[BlackElo "2527"]
[TimeControl "180+1"]
[EndTime "14:07:31 PDT"]
[Termination "Njal28 won by resignation"]

1. Nf3 {[%clk 0:03:00]} 1... d5 {[%clk 0:02:31.1]} 2. b3 {[%clk 0:02:58.3]} 2...
c5 {[%clk 0:02:25.2]} 3. e3 {[%clk 0:02:58.4]} 3... a6 {[%clk 0:02:25.8]} 4. c4
{[%clk 0:02:56.9]} 4... d4 {[%clk 0:02:23.9]} 5. Ba3 {[%clk 0:02:54]} 5... dxe3
{[%clk 0:02:19.7]} 6. fxe3 {[%clk 0:02:52.6]} 6... e6 {[%clk 0:02:18.4]} 7. Nc3
{[%clk 0:02:50.2]} 7... Nf6 {[%clk 0:02:15.6]} 8. Be2 {[%clk 0:02:38.1]} 8...
Nc6 {[%clk 0:02:14.2]} 9. O-O {[%clk 0:02:38.1]} 9... Be7 {[%clk 0:02:13]} 10.
Qc2 {[%clk 0:02:31.4]} 10... O-O {[%clk 0:02:11]} 11. Rad1 {[%clk 0:02:15.4]}
11... b6 {[%clk 0:02:10.5]} 12. Ng5 {[%clk 0:02:15.3]} 12... g6 {[%clk
0:02:07.7]} 13. Bf3 {[%clk 0:02:09.8]} 13... Bb7 {[%clk 0:02:07.9]} 14. Nge4
{[%clk 0:02:07.7]} 14... Nxe4 {[%clk 0:02:04.5]} 15. Nxe4 {[%clk 0:02:07.8]}
15... Qc7 {[%clk 0:02:02.4]} 16. Bb2 {[%clk 0:02:05.7]} 16... f5 {[%clk
0:01:57.6]} 17. Qc3 {[%clk 0:01:57]} 17... e5 {[%clk 0:01:57.4]} 18. Ng3 {[%clk
0:01:55.5]} 18... Bf6 {[%clk 0:01:54.4]} 19. Bd5+ {[%clk 0:01:55.1]} 19... Kg7
{[%clk 0:01:53]} 20. e4 {[%clk 0:01:19.1]} 20... f4 {[%clk 0:01:46.5]} 21. Ne2
{[%clk 0:01:19.3]} 21... Nd4 {[%clk 0:01:44.5]} 22. Nxd4 {[%clk 0:01:19.3]}
22... exd4 {[%clk 0:01:41.1]} 23. Qf3 {[%clk 0:01:19.6]} 23... Be5 {[%clk
0:01:41.3]} 24. d3 {[%clk 0:01:17.9]} 24... Bxd5 {[%clk 0:01:36.8]} 25. exd5
{[%clk 0:01:16.4]} 25... Rae8 {[%clk 0:01:34.8]} 26. Rde1 {[%clk 0:01:17.3]}
26... Bd6 {[%clk 0:01:34.6]} 27. Bc1 {[%clk 0:01:08.6]} 27... Re3 {[%clk
0:00:57]} 28. Bxe3 {[%clk 0:01:08.2]} 28... fxe3 {[%clk 0:00:56.9]} 29. Qh3
{[%clk 0:01:08]} 29... Qe7 {[%clk 0:00:45.6]} 30. Rxf8 {[%clk 0:01:00.3]} 30...
Kxf8 {[%clk 0:00:46.1]} 31. Qf3+ {[%clk 0:00:51.7]} 31... Kg7 {[%clk 0:00:45.4]}
32. g3 {[%clk 0:00:51.8]} 32... h5 {[%clk 0:00:43]} 33. h4 {[%clk 0:00:39.4]}
33... Qf6 {[%clk 0:00:24.2]} 34. Qxf6+ {[%clk 0:00:39.2]} 34... Kxf6 {[%clk
0:00:24.4]} 35. Kg2 {[%clk 0:00:40.1]} 35... a5 {[%clk 0:00:23]} 36. Kf3 {[%clk
0:00:39.9]} 36... Kf5 {[%clk 0:00:22.4]} 37. Rg1 {[%clk 0:00:38.9]} 37... g5
{[%clk 0:00:20.6]} 38. hxg5 {[%clk 0:00:39]} 38... Kxg5 {[%clk 0:00:21]} 39. Rh1
{[%clk 0:00:39.2]} 39... Be5 {[%clk 0:00:19.6]} 40. Rh4 {[%clk 0:00:36.3]} 40...
Bd6 {[%clk 0:00:18.8]} 41. Re4 {[%clk 0:00:36.8]} 41... Kf5 {[%clk 0:00:14.2]}
42. g4+ {[%clk 0:00:35.6]} 42... hxg4+ {[%clk 0:00:13]} 43. Rxg4 {[%clk
0:00:36.5]} 43... Be5 {[%clk 0:00:12.2]} 44. Re4 {[%clk 0:00:37.4]} 44... Kf6
{[%clk 0:00:11.4]} 45. Rh4 {[%clk 0:00:36]} 45... Kg6 {[%clk 0:00:10.1]} 46. Ke2
{[%clk 0:00:36.1]} 46... Bf6 {[%clk 0:00:09.3]} 47. Rh1 {[%clk 0:00:36.4]} 47...
Kf5 {[%clk 0:00:09.4]} 48. Rh7 {[%clk 0:00:36.2]} 48... Ke5 {[%clk 0:00:08.1]}
49. Rb7 {[%clk 0:00:37.1]} 49... b5 {[%clk 0:00:07.1]} 50. Rxb5 {[%clk
0:00:37.3]} 1-0

[Event "Late-Titled-Tuesday-Blitz-April-23-2024"]
[Site "Chess.com"]
[Date "2024.04.23"]
[Round "1"]
[White "FuenfgegenWilly"]
[Black "BardArtem"]
[Result "0-1"]
[WhiteElo "2484"]
[BlackElo "2819"]
[TimeControl "180+1"]
[EndTime "14:07:32 PDT"]
[Termination "BardArtem won by resignation"]

1. d4 {[%clk 0:02:56.4]} 1... d5 {[%clk 0:02:59.8]} 2. c4 {[%clk 0:02:56.6]}
2... e6 {[%clk 0:02:59.9]} 3. Nc3 {[%clk 0:02:56.6]} 3... Nf6 {[%clk 0:03:00.4]}
4. cxd5 {[%clk 0:02:56.7]} 4... exd5 {[%clk 0:02:59.1]} 5. Bg5 {[%clk
0:02:56.4]} 5... Be7 {[%clk 0:02:58.8]} 6. e3 {[%clk 0:02:56.8]} 6... h6 {[%clk
0:02:59.2]} 7. Bxf6 {[%clk 0:02:56.3]} 7... Bxf6 {[%clk 0:03:00.1]} 8. Bd3
{[%clk 0:02:55.7]} 8... O-O {[%clk 0:03:00.4]} 9. h3 {[%clk 0:02:55.8]} 9... c6
{[%clk 0:03:00.8]} 10. Nf3 {[%clk 0:02:56]} 10... Be7 {[%clk 0:03:01.1]} 11. O-O
{[%clk 0:02:55.1]} 11... Bd6 {[%clk 0:03:01.5]} 12. Ne5 {[%clk 0:02:55.3]} 12...
Nd7 {[%clk 0:03:00.9]} 13. f4 {[%clk 0:02:54.9]} 13... Re8 {[%clk 0:03:00.2]}
14. Qh5 {[%clk 0:02:52.5]} 14... Qe7 {[%clk 0:02:52.3]} 15. Rae1 {[%clk
0:02:07.9]} 15... Nf6 {[%clk 0:02:49.8]} 16. Qh4 {[%clk 0:02:07.3]} 16... a6
{[%clk 0:02:36.7]} 17. g4 {[%clk 0:02:06.5]} 17... Nh7 {[%clk 0:02:16.9]} 18.
Qh5 {[%clk 0:02:00.2]} 18... Nf8 {[%clk 0:01:44.4]} 19. h4 {[%clk 0:01:32.7]}
19... Qe6 {[%clk 0:01:14.9]} 20. Rf3 {[%clk 0:00:55.4]} 20... Bxe5 {[%clk
0:01:05.5]} 21. fxe5 {[%clk 0:00:48.4]} 21... Qxg4+ {[%clk 0:01:05.6]} 22. Qxg4
{[%clk 0:00:48.6]} 22... Bxg4 {[%clk 0:01:06.5]} 23. Rg3 {[%clk 0:00:49.1]}
23... h5 {[%clk 0:01:06.1]} 24. Na4 {[%clk 0:00:42.7]} 24... f6 {[%clk
0:01:02.6]} 25. exf6 {[%clk 0:00:40]} 25... gxf6 {[%clk 0:01:03.5]} 26. Nc5
{[%clk 0:00:40.4]} 26... Re7 {[%clk 0:01:03.1]} 27. b4 {[%clk 0:00:40.2]} 27...
Kf7 {[%clk 0:00:53.9]} 28. a4 {[%clk 0:00:39.3]} 28... Ne6 {[%clk 0:00:52.2]}
29. a5 {[%clk 0:00:37.2]} 29... Nxd4 {[%clk 0:00:51]} 30. Kf2 {[%clk 0:00:29.5]}
30... Ne6 {[%clk 0:00:49.8]} 31. Nb3 {[%clk 0:00:27.1]} 31... Rae8 {[%clk
0:00:49]} 32. Rgg1 {[%clk 0:00:25.2]} 32... f5 {[%clk 0:00:42.5]} 33. Nd4 {[%clk
0:00:16]} 33... Kf6 {[%clk 0:00:35.6]} 34. Rgf1 {[%clk 0:00:13]} 34... Nxd4
{[%clk 0:00:21.2]} 35. exd4 {[%clk 0:00:13.9]} 35... f4 {[%clk 0:00:21.7]} 36.
Rxe7 {[%clk 0:00:12.4]} 36... Rxe7 {[%clk 0:00:22.6]} 37. Kg2 {[%clk 0:00:12.1]}
37... f3+ {[%clk 0:00:19.6]} 38. Kg3 {[%clk 0:00:11.7]} 38... Re3 {[%clk
0:00:19.1]} 39. Bb1 {[%clk 0:00:07.8]} 39... Rb3 {[%clk 0:00:18.6]} 40. Re1
{[%clk 0:00:06.5]} 40... Rxb4 {[%clk 0:00:16.1]} 41. Bd3 {[%clk 0:00:05.2]}
41... Rxd4 {[%clk 0:00:16]} 42. Bf1 {[%clk 0:00:05.2]} 42... Ra4 {[%clk
0:00:14.9]} 43. Re8 {[%clk 0:00:05]} 43... Rxa5 {[%clk 0:00:15.2]} 44. Rf8+
{[%clk 0:00:05]} 44... Ke5 {[%clk 0:00:15.4]} 45. Rb8 {[%clk 0:00:05.9]} 45...
b5 {[%clk 0:00:15]} 46. Rc8 {[%clk 0:00:06.1]} 46... Bxc8 {[%clk 0:00:14.7]} 0-1

[Event "Late-Titled-Tuesday-Blitz-April-23-2024"]
[Site "Chess.com"]
[Date "2024.04.23"]
[Round "1"]
[White "Sokoloco"]
[Black "SharathRk6"]
[Result "1-0"]
[WhiteElo "2756"]
[BlackElo "2441"]
[TimeControl "180+1"]
[EndTime "14:07:33 PDT"]
[Termination "Sokoloco won by resignation"]

1. b3 {[%clk 0:03:00.9]} 1... Nf6 {[%clk 0:02:59.5]} 2. Bb2 {[%clk 0:03:00.8]}
2... g6 {[%clk 0:02:59.9]} 3. Nf3 {[%clk 0:03:00.5]} 3... Bg7 {[%clk 0:02:59.8]}
4. g3 {[%clk 0:03:01.2]} 4... b6 {[%clk 0:02:58.5]} 5. Bg2 {[%clk 0:03:00.9]}
5... Bb7 {[%clk 0:02:58.9]} 6. O-O {[%clk 0:03:01.6]} 6... O-O {[%clk
0:02:58.9]} 7. d4 {[%clk 0:02:47.6]} 7... d5 {[%clk 0:02:58.7]} 8. Ne5 {[%clk
0:02:41.5]} 8... Nbd7 {[%clk 0:02:56]} 9. c4 {[%clk 0:02:42.1]} 9... e6 {[%clk
0:02:54.8]} 10. Nc3 {[%clk 0:02:33.7]} 10... Nxe5 {[%clk 0:02:49]} 11. dxe5
{[%clk 0:02:33.8]} 11... Ne4 {[%clk 0:02:49.4]} 12. Nxe4 {[%clk 0:02:12.3]}
12... dxe4 {[%clk 0:02:49.2]} 13. Qc2 {[%clk 0:02:10.3]} 13... Qg5 {[%clk
0:02:48]} 14. Bxe4 {[%clk 0:02:09.6]} 14... Bxe4 {[%clk 0:02:47.1]} 15. Qxe4
{[%clk 0:02:09.4]} 15... Qd2 {[%clk 0:02:43.9]} 16. Bc1 {[%clk 0:01:57.5]} 16...
Qc3 {[%clk 0:02:41.2]} 17. Bf4 {[%clk 0:01:58.2]} 17... Rad8 {[%clk 0:02:37.3]}
18. Rab1 {[%clk 0:01:15]} 18... c5 {[%clk 0:02:20.5]} 19. Rfc1 {[%clk
0:01:09.7]} 19... Qa5 {[%clk 0:02:09.1]} 20. Qc2 {[%clk 0:01:09.8]} 20... h6
{[%clk 0:02:05.2]} 21. h4 {[%clk 0:01:08.1]} 21... Rd7 {[%clk 0:01:58.5]} 22.
Rd1 {[%clk 0:01:08.3]} 22... Rfd8 {[%clk 0:01:57.9]} 23. a4 {[%clk 0:01:03.9]}
23... Qb4 {[%clk 0:01:49]} 24. Rxd7 {[%clk 0:01:03.8]} 24... Rxd7 {[%clk
0:01:48.9]} 25. Rd1 {[%clk 0:01:04.7]} 25... Rxd1+ {[%clk 0:01:39.8]} 26. Qxd1
{[%clk 0:01:05.6]} 26... Qc3 {[%clk 0:01:40.1]} 27. Qd3 {[%clk 0:00:48.9]} 27...
Bxe5 {[%clk 0:01:10.4]} 28. Bxh6 {[%clk 0:00:41]} 28... Kh7 {[%clk 0:00:57.6]}
29. Qxc3 {[%clk 0:00:40.7]} 29... Bxc3 {[%clk 0:00:57.4]} 30. Bf4 {[%clk
0:00:37]} 30... e5 {[%clk 0:00:56.9]} 31. Bg5 {[%clk 0:00:37.7]} 31... Kg7
{[%clk 0:00:54.4]} 32. Bd8 {[%clk 0:00:38.3]} 32... e4 {[%clk 0:00:48.3]} 33.
Bc7 {[%clk 0:00:38.2]} 33... Bf6 {[%clk 0:00:46.2]} 34. Bb8 {[%clk 0:00:37]}
34... Bd8 {[%clk 0:00:29.5]} 35. Bxa7 {[%clk 0:00:37.2]} 35... Bc7 {[%clk
0:00:29.7]} 36. a5 {[%clk 0:00:27.5]} 36... bxa5 {[%clk 0:00:28.8]} 37. Bxc5
{[%clk 0:00:28.2]} 37... f5 {[%clk 0:00:29]} 38. Kg2 {[%clk 0:00:28.3]} 38...
Kf6 {[%clk 0:00:29.1]} 39. Bd4+ {[%clk 0:00:28.2]} 39... Ke6 {[%clk 0:00:28.8]}
40. f3 {[%clk 0:00:28.2]} 40... Bd8 {[%clk 0:00:26.3]} 41. Kh3 {[%clk
0:00:27.7]} 41... Be7 {[%clk 0:00:23.1]} 42. g4 {[%clk 0:00:27.2]} 42... exf3
{[%clk 0:00:23]} 43. exf3 {[%clk 0:00:28.1]} 43... Bd8 {[%clk 0:00:22.9]} 44. h5
{[%clk 0:00:27.7]} 44... fxg4+ {[%clk 0:00:22.7]} 45. fxg4 {[%clk 0:00:28.6]}
45... gxh5 {[%clk 0:00:23.3]} 46. gxh5 {[%clk 0:00:29.5]} 46... Kf7 {[%clk
0:00:23.7]} 47. Kg4 {[%clk 0:00:29]} 47... Bc7 {[%clk 0:00:23.1]} 48. Kf5 {[%clk
0:00:29.1]} 48... Kg8 {[%clk 0:00:23.3]} 49. Kg6 {[%clk 0:00:28.7]} 49... Bf4
{[%clk 0:00:20.4]} 50. h6 {[%clk 0:00:28.9]} 50... Bxh6 {[%clk 0:00:21]} 51.
Kxh6 {[%clk 0:00:29.8]} 51... Kf7 {[%clk 0:00:21.6]} 52. Kg5 {[%clk 0:00:30]}
52... Ke6 {[%clk 0:00:22.5]} 53. Kf4 {[%clk 0:00:30.5]} 53... Kd6 {[%clk
0:00:23.1]} 54. Ke4 {[%clk 0:00:31.1]} 54... Kc6 {[%clk 0:00:24]} 55. Kd3 {[%clk
0:00:31.8]} 55... Kb7 {[%clk 0:00:23.6]} 56. Kc3 {[%clk 0:00:32.3]} 56... Ka6
{[%clk 0:00:24.5]} 57. Kb2 {[%clk 0:00:32.9]} 57... a4 {[%clk 0:00:24.9]} 58.
bxa4 {[%clk 0:00:33.2]} 58... Ka5 {[%clk 0:00:25.7]} 59. Kb3 {[%clk 0:00:34.1]}
59... Ka6 {[%clk 0:00:26.2]} 60. Kb4 {[%clk 0:00:35]} 60... Kb7 {[%clk
0:00:26.7]} 61. Kb5 {[%clk 0:00:35.9]} 61... Ka8 {[%clk 0:00:27]} 62. a5 {[%clk
0:00:36.8]} 62... Kb8 {[%clk 0:00:27.9]} 63. a6 {[%clk 0:00:37.5]} 63... Ka8
{[%clk 0:00:28.8]} 64. Kb6 {[%clk 0:00:37.9]} 64... Kb8 {[%clk 0:00:29]} 65. c5
{[%clk 0:00:38.2]} 65... Ka8 {[%clk 0:00:29.9]} 66. c6 {[%clk 0:00:38.8]} 66...
Kb8 {[%clk 0:00:28.3]} 67. c7+ {[%clk 0:00:39.1]} 67... Kc8 {[%clk 0:00:28.9]}
68. a7 {[%clk 0:00:39.2]} 68... Kd7 {[%clk 0:00:29.8]} 69. a8=Q {[%clk
0:00:39.6]} 1-0

[Event "Late-Titled-Tuesday-Blitz-April-23-2024"]
[Site "Chess.com"]
[Date "2024.04.23"]
[Round "1"]
[White "Ghost_Pepper"]
[Black "Hrant_ChessMood"]
[Result "0-1"]
[WhiteElo "2513"]
[BlackElo "2957"]
[TimeControl "180+1"]
[EndTime "14:07:34 PDT"]
[Termination "Hrant_ChessMood won by resignation"]

1. e4 {[%clk 0:02:57.7]} 1... e5 {[%clk 0:02:57.3]} 2. Nf3 {[%clk 0:02:56.5]}
2... Nc6 {[%clk 0:02:55.7]} 3. Bc4 {[%clk 0:02:57]} 3... Nf6 {[%clk 0:02:49.3]}
4. d4 {[%clk 0:02:55.7]} 4... exd4 {[%clk 0:02:42.3]} 5. e5 {[%clk 0:02:56.6]}
5... d5 {[%clk 0:02:38.6]} 6. Bb5 {[%clk 0:02:56.5]} 6... Ne4 {[%clk 0:02:32.6]}
7. Nxd4 {[%clk 0:02:56.3]} 7... Bd7 {[%clk 0:02:32.2]} 8. Bxc6 {[%clk
0:02:56.2]} 8... bxc6 {[%clk 0:02:32.5]} 9. O-O {[%clk 0:02:56.4]} 9... Be7
{[%clk 0:02:26.5]} 10. f3 {[%clk 0:02:50.5]} 10... Nc5 {[%clk 0:02:26.4]} 11.
Be3 {[%clk 0:02:32.4]} 11... O-O {[%clk 0:02:25.7]} 12. Nd2 {[%clk 0:02:25.3]}
12... f6 {[%clk 0:02:07.9]} 13. f4 {[%clk 0:02:11.1]} 13... fxe5 {[%clk
0:01:49.5]} 14. fxe5 {[%clk 0:02:12]} 14... Ne6 {[%clk 0:01:49.6]} 15. Nxe6
{[%clk 0:02:02.4]} 15... Bxe6 {[%clk 0:01:48.5]} 16. Nb3 {[%clk 0:02:02.8]}
16... Qe8 {[%clk 0:01:31.5]} 17. Rxf8+ {[%clk 0:01:41.3]} 17... Bxf8 {[%clk
0:01:31.1]} 18. Bc5 {[%clk 0:01:30.9]} 18... Qg6 {[%clk 0:01:26.6]} 19. Qd2
{[%clk 0:01:19.1]} 19... Bf5 {[%clk 0:01:17.4]} 20. c3 {[%clk 0:00:48.7]} 20...
h6 {[%clk 0:01:13.6]} 21. Rf1 {[%clk 0:00:46.6]} 21... Bxc5+ {[%clk 0:01:08]}
22. Nxc5 {[%clk 0:00:47.5]} 22... Re8 {[%clk 0:01:08.5]} 23. Qf4 {[%clk
0:00:43]} 23... Bc8 {[%clk 0:00:55.3]} 24. b4 {[%clk 0:00:36.7]} 24... Kh7
{[%clk 0:00:54.9]} 25. Qd4 {[%clk 0:00:25.7]} 25... Bh3 {[%clk 0:00:49.5]} 26.
Rf2 {[%clk 0:00:20.6]} 26... Bg4 {[%clk 0:00:39.4]} 27. Kf1 {[%clk 0:00:17.3]}
27... Qg5 {[%clk 0:00:35.3]} 28. Kg1 {[%clk 0:00:16.2]} 28... Rxe5 {[%clk
0:00:28.9]} 29. h3 {[%clk 0:00:16.1]} 29... Bxh3 {[%clk 0:00:24.7]} 30. Qd3+
{[%clk 0:00:15.5]} 30... Bf5 {[%clk 0:00:24.9]} 31. Qd2 {[%clk 0:00:15.6]} 31...
Qxd2 {[%clk 0:00:20.4]} 32. Rxd2 {[%clk 0:00:16.5]} 32... Re3 {[%clk 0:00:21.2]}
33. Rf2 {[%clk 0:00:14.7]} 33... Kg6 {[%clk 0:00:21.1]} 34. Rf3 {[%clk
0:00:12.3]} 34... Rxf3 {[%clk 0:00:18.4]} 35. gxf3 {[%clk 0:00:13.2]} 35... h5
{[%clk 0:00:19.2]} 36. Kf2 {[%clk 0:00:13.8]} 36... Kf6 {[%clk 0:00:19.6]} 37.
Kg3 {[%clk 0:00:13.5]} 37... g5 {[%clk 0:00:20.1]} 38. Na6 {[%clk 0:00:13.8]}
38... h4+ {[%clk 0:00:21]} 39. Kf2 {[%clk 0:00:12.8]} 39... Ke5 {[%clk
0:00:19.2]} 40. Nxc7 {[%clk 0:00:13.3]} 40... Bc8 {[%clk 0:00:19.4]} 41. Ne8
{[%clk 0:00:12.8]} 41... Bd7 {[%clk 0:00:17.7]} 42. Ng7 {[%clk 0:00:11.3]} 42...
Kf6 {[%clk 0:00:17.1]} 43. Nh5+ {[%clk 0:00:10.7]} 43... Kg6 {[%clk 0:00:17.8]}
0-1